[Event "Asian Zonal-ch 3.5 Women 2019"]
[Site "Zi Bo"]
[Date "2019.09.10"]
[Round "9.7"]
[White "Li, Xueyi"]
[Black "Song, Yuxin"]
[Result "1/2-1/2"]
[ECO "E11"]
[WhiteElo "2323"]
[BlackElo "2305"]
[Annotator "RC"]
[PlyCount "64"]
[EventDate "2019.09.05"]
[EventType "swiss"]
[EventCountry "CHN"]
[SourceTitle "playchess.com"]
[Source "ChessBase"]
[SourceQuality "1"]
[TimeControl "5400+30"]

1. d4 {[%emt 0:00:00]} Nf6 {[%emt 0:00:00]} 2. c4 {[%emt 0:00:01]} e6 {[%emt 0:00:00]} 3. Nf3 {[%emt 0:00:19]} d5 {[%emt 0:00:05]} 4. g3 {[%emt 0:00:13]} Bb4+ {[%emt 0:00:07]} 5. Bd2 {[%emt 0:00:18]} Be7 {[%emt 0:00:11]} 6. Bg2 {[%emt 0:00:06]} O-O {[%emt 0:00:16]} 7. O-O {[%emt 0:00:07]} Nbd7 {[%emt 0:00:08]} 8. Qc2 {[%emt 0:00:35]} c6 {[%emt 0:00:07]} 9. a4 {[%emt 0:03:12]} a5 {[%emt 0:00:42]} 10. Bf4 {[%emt 0:01:03]} b6 {[%emt 0:03:19]} 11. Nc3 {[%emt 0:03:45]} dxc4 {[%emt 0:19:06]} 12. e4 {[%emt 0:05:08]} Ba6 {[%emt 0:08:05]} 13. Rfd1 {[%emt 0:01:35]} Rc8 {[%emt 0:02:22]} 14. Qe2 {[%emt 0:10:10]} Bb4 {[%emt 0:12:11]} 15. h4 {[%emt 0:26:05]} b5 {[%emt 0:18:23]} 16. d5 {[%emt 0:17:33]} exd5 {[%emt 0:13:08]} 17. exd5 {[%emt 0:00:12]} Nxd5 {[%emt 0:00:50]} 18. Nxd5 {[%emt 0:00:30]} cxd5 {[%emt 0:00:06]} 19. Rxd5 {[%emt 0:00:25]} Bb7 {[%emt 0:00:23]} 20. Rdd1 {[%emt 0:02:07]} Re8 {[%emt 0:01:53]} 21. Qf1 {[%emt 0:01:11]} Be4 {[%emt 0:01:44]} 22. axb5 {[%emt 0:10:41]} Bd3 {[%emt 0:02:29]} 23. Rxd3 {[%emt 0:00:06]} cxd3 {[%emt 0:00:02]} 24. Qxd3 {[%emt 0:00:05]} Nc5 {[%emt 0:00:59]} 25. Qxd8 {[%emt 0:01:02]} Rcxd8 {[%emt 0:01:58]} 26. Ne5 {[%emt 0:00:20]} Nb3 {[%emt 0:04:40]} 27. Rf1 {[%emt 0:00:06]} Bc5 {[%emt 0:02:33]} 28. Nc6 {[%emt 0:00:09]} Rd7 {[%emt 0:00:13]} 29. Bh3 {[%emt 0:01:27]} Rd5 {[%emt 0:03:01]} 30. Bg2 {[%emt 0:00:33]} Rd7 {[%emt 0:00:01]} 31. Bh3 {[%emt 0:00:05]} Rd5 {[%emt 0:00:01]} 32. Bg2 {[%emt 0:00:05]} Rd7 {[%emt 0:00:01]} 1/2-1/2

[Event "Asian Zonal-ch 3.5 Women 2019"]
[Site "Zi Bo"]
[Date "2019.09.10"]
[Round "9.10"]
[White "Bai, Xue"]
[Black "Wang, Yuehan"]
[Result "1-0"]
[ECO "B43"]
[WhiteElo "2093"]
[BlackElo "1600"]
[Annotator "NA RC"]
[PlyCount "75"]
[EventDate "2019.09.05"]
[EventType "swiss"]
[EventCountry "CHN"]
[SourceTitle "playchess.com"]
[Source "ChessBase"]
[SourceQuality "1"]
[TimeControl "5400+30"]

1. e4 {[%emt 0:00:00]} c5 {[%emt 0:00:00]} 2. Nf3 {[%emt 0:00:00]} e6 {[%emt 0:00:07]} 3. d4 {[%emt 0:00:00]} cxd4 {[%emt 0:00:04]} 4. Nxd4 {[%emt 0:00:00]} a6 {[%emt 0:00:03]} 5. Nc3 {[%emt 0:02:54]} Qc7 {[%emt 0:00:39]} 6. g3 {[%emt 0:01:16]} Bb4 {[%emt 0:02:45]} 7. Nde2 {[%emt 0:00:08]} Nf6 {[%emt 0:10:53]} 8. Bg2 {[%emt 0:00:18]} Be7 {[%emt 0:07:12]} 9. O-O {[%emt 0:00:28]} O-O {[%emt 0:00:21]} 10. h3 {[%emt 0:01:33]} Nc6 {[%emt 0:01:42]} 11. Bf4 {[%emt 0:03:07]} d6 {[%emt 0:00:20]} 12. Qd2 {[%emt 0:00:34] B43: Sicilian: Kan Variation: 5 Nc3} Rd8 {[%emt 0:01:06]} 13. a4 {[%emt 0:01:10] [#]} Ne5 $146 {[%emt 0:01:23]} ({Predecessor:} 13... Rb8 14. g4 b5 15. axb5 axb5 16. g5 Nd7 17. Bg3 b4 {0-1 (26) Chavez Chavez,R-Quinteros,M (2555) Sao Paulo 1977}) 14. Rad1 {[%emt 0:01:43]} Nc4 {[%emt 0:02:49]} 15. Qc1 {[%emt 0:00:05]} Nh5 {[%emt 0:01:03]} 16. Be3 {[%emt 0:02:00]} Nxe3 {[%emt 0:00:34]} 17. Qxe3 {[%emt 0:00:06]} Nf6 {[%emt 0:00:25]} 18. g4 {[%emt 0:02:51]} Nd7 {[%emt 0:01:48]} 19. Nd4 {[%emt 0:04:20]} Ne5 {[%emt 0:00:54]} 20. b3 {[%emt 0:01:02]} Bd7 {[%emt 0:01:35]} 21. Nce2 {[%emt 0:00:28]} Nc6 {[%emt 0:01:02]} 22. c4 {[%emt 0:07:40]} Nb4 {[%emt 0:00:43]} 23. Kh1 {[%emt 0:03:43]} Qc5 {[%emt 0:02:03]} 24. Qg3 {[%emt 0:04:47]} h5 {[%emt 0:06:01]} 25. f4 {[%emt 0:08:01]} hxg4 {[%emt 0:01:31]} 26. Qxg4 {[%emt 0:06:39]} Bf6 {[%emt 0:07:13]} 27. f5 $1 {[%emt 0:01:43]} e5 $2 {[%emt 0:00:48] [#]} (27... Re8 $14) 28. Ne6 $1 {[%emt 0:01:10]} fxe6 $18 {[%emt 0:09:21]} (28... Qe3 {was called for.} 29. Nxd8 Bxd8 30. Rxd6 Be8) 29. fxe6 {[%emt 0:00:06]} Nc2 {[%emt 0:01:54]} 30. Rxf6 {[%emt 0:07:34]} Ne3 {[%emt 0:08:04]} 31. Qg5 {[%emt 0:00:02]} Bxe6 {[%emt 0:08:54]} 32. Rxe6 {[%emt 0:00:59]} Rd7 {[%emt 0:00:46]} 33. Rg1 {[%emt 0:01:01]} Rf8 {[%emt 0:02:03]} 34. Ng3 {[%emt 0:01:34]} Qd4 {[%emt 0:04:07]} 35. Nf5 {[%emt 0:01:42]} Nxf5 {[%emt 0:01:00]} 36. exf5 {[%emt 0:00:02]} Rc8 {[%emt 0:04:53]} 37. Bd5 {[%emt 0:00:09]} Kf8 {[%emt 0:00:24]} 38. Qh5 {[%emt 0:00:32]} 1-0

[Event "Asian Zonal-ch 3.5 Women 2019"]
[Site "Zi Bo"]
[Date "2019.09.10"]
[Round "9.11"]
[White "Cai Youyang"]
[Black "Xue, Yue"]
[Result "1-0"]
[ECO "B76"]
[WhiteElo "1910"]
[BlackElo "1678"]
[Annotator "NA RC"]
[PlyCount "85"]
[EventDate "2019.09.05"]
[EventType "swiss"]
[EventCountry "CHN"]
[SourceTitle "playchess.com"]
[Source "ChessBase"]
[SourceQuality "1"]
[TimeControl "5400+30"]

1. e4 {[%emt 0:00:07]} c5 {[%emt 0:04:29]} 2. Nf3 {[%emt 0:00:07]} d6 {[%emt 0:00:03]} 3. d4 {[%emt 0:00:05]} cxd4 {[%emt 0:00:07]} 4. Nxd4 {[%emt 0:00:04]} Nf6 {[%emt 0:00:09]} 5. Nc3 {[%emt 0:00:05]} g6 {[%emt 0:00:44]} 6. Be3 {[%emt 0:04:36]} Bg7 {[%emt 0:00:06]} 7. f3 {[%emt 0:00:05]} Nc6 {[%emt 0:00:04]} 8. Qd2 {[%emt 0:00:04]} O-O {[%emt 0:00:04]} 9. g4 {[%emt 0:02:28]} Be6 {[%emt 0:05:05]} 10. g5 {[%emt 0:34:39] B76: Sicilian Dragon: Yugoslav Attack, 9 g4 and 9 0-0-0} (10. Nxe6 fxe6 11. O-O-O Ne5 12. Be2 Qc8 13. h4 Nfd7 14. h5 Nc4 15. Bxc4 Qxc4 16. hxg6 hxg6 17. f4 Bxc3 18. bxc3 Nf6 19. Bd4 e5 20. fxe5 dxe5 {1-0 (41) Cornette,M (2611)-Jones,G (2640) chess.com INT 2018}) 10... Nh5 {[%emt 0:19:22]} 11. Nxe6 {[%emt 0:03:05]} fxe6 {[%emt 0:01:37]} 12. f4 {[%emt 0:00:06]} Qa5 $146 {[%emt 0:09:04]} ({Predecessor:} 12... e5 13. f5 Nd4 14. Be2 Nxe2 15. Qxe2 Rc8 16. Nd5 Nf4 17. Bxf4 exf4 18. O-O-O e6 {1-0 (87) Kosteniuk,A (2527)-Kosintseva,T (2496) Beijing 2013}) 13. Bh3 {[%emt 0:04:04]} Nd8 {[%emt 0:10:16]} 14. Bg4 {[%emt 0:01:58]} Rc8 {[%emt 0:01:05]} 15. Ne2 {[%emt 0:01:01]} Qa4 {[%emt 0:10:51] Double Attack} 16. c3 {[%emt 0:00:15]} Qxe4 {[%emt 0:00:22]} 17. O-O {[%emt 0:00:09]} Nc6 {[%emt 0:06:28]} 18. Bxh5 {[%emt 0:01:27]} gxh5 {[%emt 0:00:09]} 19. Ng3 {[%emt 0:00:03]} Qg6 {[%emt 0:00:17]} 20. h4 {[%emt 0:00:37]} b6 {[%emt 0:05:28]} ({Black should play} 20... d5 $11) 21. Qe2 {[%emt 0:00:45]} Na5 {[%emt 0:00:43]} 22. Nxh5 {[%emt 0:01:54]} Bh8 {[%emt 0:01:59]} 23. Ng3 {[%emt 0:00:28]} Nc4 {[%emt 0:00:58]} 24. h5 {[%emt 0:01:25]} Qf7 {[%emt 0:00:03]} 25. Bd4 {[%emt 0:02:14]} Bxd4+ {[%emt 0:01:00]} 26. cxd4 {[%emt 0:00:03]} Kh8 {[%emt 0:00:59]} 27. Rae1 {[%emt 0:00:34]} Qg7 {[%emt 0:00:09]} 28. Qe4 $4 {[%emt 0:04:05]} (28. Qxe6 $18 {was the only winning move.} Qxd4+ {[%mdl 64] Double Attack} 29. Kg2 Qxb2+ 30. Re2) 28... Nd2 {[%emt 0:01:03]} 29. Qd3 {[%emt 0:00:20]} Nxf1 {[%emt 0:00:18]} 30. Rxf1 {[%emt 0:00:02]} Rc7 {[%emt 0:03:47]} 31. Rf2 {[%emt 0:02:55]} (31. Kg2 $17 {was necessary.}) 31... Rfc8 {[%emt 0:04:22]} 32. Qe4 {[%emt 0:00:40]} Qg8 {[%emt 0:05:22]} 33. g6 {[%emt 0:01:58]} Rc4 {[%emt 0:02:14]} 34. f5 {[%emt 0:05:30]} exf5 $2 {[%emt 0:03:33]} (34... Rc1+ $11 {and Black has nothing to worry.} 35. Kg2 Rf8) 35. Nxf5 {[%emt 0:00:20]} Rc1+ $2 {[%emt 0:00:25]} (35... hxg6 {is a better defense.} 36. Nxe7 {[%mdl 64] Double Attack} Qg7) 36. Kg2 $2 {[%emt 0:00:57]} (36. Kh2 $18 hxg6 37. Nxe7 {[%mdl 64] Double Attack}) 36... hxg6 {[%emt 0:00:07]} 37. Nxe7 {[%emt 0:00:04]} Re8 {[%emt 0:01:28]} 38. Nxg6+ {[%emt 0:00:15]} Kh7 {[%emt 0:02:23]} 39. Qf5 $1 {[%emt 0:02:17]} Rc7 {[%emt 0:01:59]} 40. Kh2 {[%emt 0:00:41]} Qg7 {[%emt 0:00:29]} 41. Rg2 $11 {[%emt 0:04:56]} (41. Nf8+ $16 Kh8 42. Ne6 Rxe6 43. Qxe6) 41... Qf7 {[%emt 0:00:18]} 42. Qd3 {[%emt 0:06:22]} Qc4 {[%emt 0:00:40]} 43. Nf8+ {[%emt 0:01:01]} 1-0

[Event "Asian Zonal-ch 3.5 Women 2019"]
[Site "Zi Bo"]
[Date "2019.09.10"]
[Round "9.12"]
[White "Zhao, Caidi"]
[Black "Yuan, Ye"]
[Result "0-1"]
[ECO "B40"]
[WhiteElo "1540"]
[BlackElo "2092"]
[Annotator "NA RC"]
[PlyCount "48"]
[EventDate "2019.09.05"]
[EventType "swiss"]
[EventCountry "CHN"]
[SourceTitle "playchess.com"]
[Source "ChessBase"]
[SourceQuality "1"]
[TimeControl "5400+30"]

1. e4 {[%emt 0:00:00]} c5 {[%emt 0:01:47]} 2. Nf3 {[%emt 0:00:00]} e6 {[%emt 0:00:30]} 3. b3 {[%emt 0:00:02]} b6 {[%emt 0:00:30]} 4. Bb2 {[%emt 0:00:30]} Bb7 {[%emt 0:00:30]} 5. d3 {[%emt 0:00:30]} Nc6 {[%emt 0:00:30]} (5... d6 6. g3 Nf6 7. Bg2 Be7 8. O-O O-O 9. Nbd2 Nc6 10. Re1 Nd7 {½-½ (10) Rozentalis,E (2577)-Gharamian,T (2555) Belgium 2009}) 6. Nbd2 {[%emt 0:00:30] B40: Sicilian: 2...e6, Unusual lines} d5 {[%emt 0:00:30]} 7. exd5 {[%emt 0:00:30]} Qxd5 $146 {[%emt 0:00:30]} ({Predecessor:} 7... exd5 8. d4 Nf6 9. Bb5 Be7 10. dxc5 bxc5 11. Ne5 Qc7 12. Qf3 O-O 13. Nxc6 Bxc6 14. Bxc6 Qxc6 {½-½ (48) Stany,G (2302)-Shyam,S (2402) Chennai 2008}) 8. Ne4 {[%emt 0:00:30]} f5 {[%emt 0:00:30]} 9. Nc3 {[%emt 0:00:30]} Qd7 {[%emt 0:00:30]} 10. Qe2 {[%emt 0:00:30] [#]} (10. a4 $15) 10... Nd4 $1 {[%emt 0:00:30]} 11. Nxd4 {[%emt 0:00:30]} (11. Qd1 $17) 11... cxd4 {[%emt 0:00:30]} 12. Nb1 {[%emt 0:00:30]} Rc8 {[%emt 0:00:30]} 13. f3 {[%emt 0:00:30]} (13. c4 $142) 13... Nf6 {[%emt 0:00:30]} 14. Na3 {[%emt 0:00:30]} Bb4+ {[%emt 0:00:30] O-O} 15. Kf2 {[%emt 0:00:30]} b5 {[%emt 0:00:30]} 16. Rc1 {[%emt 0:00:30]} O-O {[%emt 0:00:30]} 17. Qe5 {[%emt 0:00:30]} a6 {[%emt 0:00:30]} 18. Nb1 {[%emt 0:00:30]} Bd6 $19 {[%emt 0:00:30]} 19. Qe1 {[%emt 0:00:30]} Bf4 {[%emt 0:00:30]} 20. Nd2 {[%emt 0:00:30]} Be3+ {[%emt 0:00:30]} 21. Ke2 {[%emt 0:00:30]} Nd5 {[%emt 0:00:30]} 22. c3 {[%emt 0:00:30]} dxc3 {[%emt 0:00:30]} 23. Bxc3 {[%emt 0:00:30]} Nxc3+ {[%emt 0:00:30]} 24. Kxe3 {[%emt 0:00:30]} f4+ {[%emt 0:00:30]} 0-1